[Event "36th German Seniors-ch-65 2024"]
[Site "Bad Wildungen"]
[Date "2024.08.26"]
[Round "4.8"]
[White "Keller, Harald"]
[Black "Nehmert, Ulrich"]
[Result "1/2-1/2"]
[ECO "B12"]
[WhiteElo "2022"]
[BlackElo "2255"]
[Annotator "RC"]
[PlyCount "30"]
[EventDate "2024.08.22"]
[EventType "swiss"]
[EventCountry "GER"]
[SourceTitle "playchess.com"]
[Source "ChessBase"]
[SourceQuality "1"]
[TimeControl "40/5400+30:1800+30"]

1. e4 {[%emt 0:00:05]} c6 {[%emt 0:00:15]} 2. d4 {[%emt 0:00:20]} d5 {[%emt 0:00:12]} 3. e5 {[%emt 0:00:31]} Bf5 {[%emt 0:00:10]} 4. Nd2 {[%emt 0:00:07]} e6 {[%emt 0:00:17]} 5. Nb3 {[%emt 0:00:13]} Nd7 {[%emt 0:01:11]} 6. Nf3 {[%emt 0:01:06]} h6 {[%emt 0:00:00]} 7. Be3 {[%emt 0:00:46]} Ne7 {[%emt 0:02:38]} 8. Be2 {[%emt 0:01:43]} Qc7 {[%emt 0:02:06]} 9. O-O {[%emt 0:02:37]} g5 {[%emt 0:05:17]} 10. Ne1 {[%emt 0:04:14]} Bg6 {[%emt 0:02:00]} 11. Nd3 {[%emt 0:02:14]} b6 {[%emt 0:10:28]} 12. Rc1 {[%emt 0:18:03]} Bg7 {[%emt 0:07:17]} 13. Bh5 {[%emt 0:13:35]} Nf5 {[%emt 0:13:00]} 14. Bxg6 {[%emt 0:04:41]} fxg6 {[%emt 0:00:03]} 15. c4 {[%emt 0:00:37]} Qb7 {[%emt 0:03:34]} 1/2-1/2

[Event "36th German Seniors-ch-65 2024"]
[Site "Bad Wildungen"]
[Date "2024.08.26"]
[Round "4.9"]
[White "Behrens, Harald"]
[Black "Haubt, Georg"]
[Result "1-0"]
[ECO "D79"]
[WhiteElo "2206"]
[BlackElo "2063"]
[Annotator "RC"]
[PlyCount "113"]
[EventDate "2024.08.22"]
[EventType "swiss"]
[EventCountry "GER"]
[SourceTitle "playchess.com"]
[Source "ChessBase"]
[SourceQuality "1"]
[TimeControl "40/5400+30:1800+30"]

1. d4 {[%emt 0:00:05]} Nf6 {[%emt 0:00:16]} 2. Nf3 {[%emt 0:00:07]} g6 {[%emt 0:00:16]} 3. g3 {[%emt 0:00:06]} d5 {[%emt 0:01:56]} 4. Bg2 {[%emt 0:00:09]} Bg7 {[%emt 0:00:06]} 5. c4 {[%emt 0:00:06]} c6 {[%emt 0:02:01]} 6. O-O {[%emt 0:00:13]} O-O {[%emt 0:02:26]} 7. cxd5 {[%emt 0:00:08]} cxd5 {[%emt 0:00:09]} 8. Nc3 {[%emt 0:00:06]} Nc6 {[%emt 0:01:58]} 9. Ne5 {[%emt 0:00:43]} Be6 {[%emt 0:08:31]} 10. Nxc6 {[%emt 0:02:24]} bxc6 {[%emt 0:00:02]} 11. Bf4 {[%emt 0:00:52]} Nd7 {[%emt 0:03:35]} 12. Na4 {[%emt 0:03:14]} Qa5 {[%emt 0:05:55]} 13. Rc1 {[%emt 0:04:11]} Rac8 {[%emt 0:00:38]} 14. a3 {[%emt 0:05:44]} h6 {[%emt 0:02:17]} 15. Nc5 {[%emt 0:01:30]} Nxc5 {[%emt 0:02:05]} 16. Rxc5 {[%emt 0:00:16]} Qb6 {[%emt 0:01:40]} 17. b4 {[%emt 0:00:44]} g5 {[%emt 0:00:40]} 18. Be3 {[%emt 0:02:56]} Bf5 {[%emt 0:05:24]} 19. Qa4 {[%emt 0:01:55]} Bg4 {[%emt 0:09:00]} 20. Rfc1 {[%emt 0:07:49]} Bxe2 {[%emt 0:04:56]} 21. Bxd5 {[%emt 0:01:37]} Bb5 {[%emt 0:00:47]} 22. Qc2 {[%emt 0:01:20]} Rfd8 {[%emt 0:10:37]} 23. Ba2 {[%emt 0:04:54]} Qa6 {[%emt 0:02:44]} 24. h4 {[%emt 0:07:58]} gxh4 {[%emt 0:01:28]} 25. Bxh6 {[%emt 0:07:59]} Bd3 {[%emt 0:02:54]} 26. Qd2 {[%emt 0:00:14]} Rd6 {[%emt 0:31:09]} 27. b5 {[%emt 0:04:52]} Bxh6 {[%emt 0:00:00]} 28. Qxd3 {[%emt 0:00:11]} Qb7 {[%emt 0:00:00]} 29. R1c2 {[%emt 0:07:06]} Qd7 {[%emt 0:00:00]} 30. bxc6 {[%emt 0:04:46]} Qg4 {[%emt 0:00:00]} 31. c7 {[%emt 0:03:41]} Rxd4 {[%emt 0:00:00]} 32. R5c4 {[%emt 0:00:11]} Bg7 {[%emt 0:00:00]} 33. Rxd4 {[%emt 0:03:30]} Bxd4 {[%emt 0:00:00]} 34. Kg2 {[%emt 0:00:50]} hxg3 {[%emt 0:00:00]} 35. fxg3 {[%emt 0:01:55]} Bb6 {[%emt 0:00:00]} 36. Rc4 {[%emt 0:00:55]} Qe6 {[%emt 0:02:20]} 37. Qf3 {[%emt 0:01:09]} Kf8 {[%emt 0:01:27]} 38. Qh5 {[%emt 0:01:05]} Qg6 {[%emt 0:01:01]} 39. Qh8+ {[%emt 0:01:26]} Qg8 {[%emt 0:00:02]} 40. Qh3 {[%emt 0:00:13]} e6 {[%emt 0:01:31]} 41. Rg4 {[%emt 0:30:13]} Qxg4 {[%emt 0:02:47]} 42. Qxg4 {[%emt 0:00:00]} Rxc7 {[%emt 0:00:01]} 43. Bc4 {[%emt 0:00:00]} Rd7 {[%emt 0:01:22]} 44. Qf3 {[%emt 0:00:00]} Ke7 {[%emt 0:01:20]} 45. Bb5 {[%emt 0:00:00]} Rd2+ {[%emt 0:02:25]} 46. Kh3 {[%emt 0:00:00]} Bg1 {[%emt 0:05:11]} 47. Qf4 {[%emt 0:00:00]} Rf2 {[%emt 0:04:11]} 48. Qc1 {[%emt 0:00:00]} Rh2+ {[%emt 0:00:30]} 49. Kg4 {[%emt 0:00:00]} Bb6 {[%emt 0:03:27]} 50. a4 {[%emt 0:00:00]} f5+ {[%emt 0:01:04]} 51. Kg5 {[%emt 0:00:00]} Kf7 {[%emt 0:01:33]} 52. Kf4 {[%emt 0:00:00]} Rf2+ {[%emt 0:02:12]} 53. Ke5 {[%emt 0:00:00]} Rf3 {[%emt 0:00:39]} 54. Kd6 {[%emt 0:00:00]} Rxg3 {[%emt 0:03:45]} 55. Qh6 {[%emt 0:01:02]} Re3 {[%emt 0:02:38]} 56. Bc4 {[%emt 0:00:17]} Ke8 {[%emt 0:01:43]} 57. Qg6+ {[%emt 0:00:45]} 1-0

[Event "36th German Seniors-ch-65 2024"]
[Site "Bad Wildungen"]
[Date "2024.08.26"]
[Round "4.10"]
[White "Okrajek, Alexander"]
[Black "Westermann, Johannes"]
[Result "1/2-1/2"]
[ECO "A14"]
[WhiteElo "2172"]
[BlackElo "2055"]
[Annotator "RC"]
[PlyCount "80"]
[EventDate "2024.08.22"]
[EventType "swiss"]
[EventCountry "GER"]
[SourceTitle "playchess.com"]
[Source "ChessBase"]
[SourceQuality "1"]
[TimeControl "40/5400+30:1800+30"]

1. Nf3 {[%emt 0:00:15]} d5 {[%emt 0:00:11]} 2. g3 {[%emt 0:00:14]} Nf6 {[%emt 1:31:19]} 3. Bg2 {[%emt 1:31:31]} e6 {[%emt 0:00:00]} 4. O-O {[%emt 0:00:00]} Be7 {[%emt 0:00:00]} 5. b3 {[%emt 0:00:00]} O-O {[%emt 0:00:00]} 6. Bb2 {[%emt 0:00:00]} c5 {[%emt 0:00:00]} 7. c4 {[%emt 0:00:00]} Nc6 {[%emt 0:00:00]} 8. d3 {[%emt 0:00:00]} Rb8 {[%emt 0:00:00]} 9. Ne5 {[%emt 0:00:00]} Nxe5 {[%emt 0:00:00]} 10. Bxe5 {[%emt 0:00:00]} Bd6 {[%emt 0:00:00]} 11. Bxd6 {[%emt 0:00:00]} Qxd6 {[%emt 0:00:00]} 12. Nc3 {[%emt 0:00:00]} b6 {[%emt 0:00:00]} 13. cxd5 {[%emt 0:00:00]} Nxd5 {[%emt 0:00:00]} 14. Rc1 {[%emt 0:00:00]} Nxc3 {[%emt 0:00:00]} 15. Rxc3 {[%emt 0:00:00]} Bb7 {[%emt 0:00:00]} 16. Qc2 {[%emt 0:00:00]} Bxg2 {[%emt 0:00:00]} 17. Kxg2 {[%emt 0:00:00]} Rbd8 {[%emt 0:00:00]} 18. Rc4 {[%emt 0:00:00]} Rd7 {[%emt 0:00:00]} 19. a3 {[%emt 0:00:00]} a5 {[%emt 0:00:00]} 20. Rb1 {[%emt 0:00:00]} e5 {[%emt 0:00:00]} 21. Kg1 {[%emt 0:00:00]} f5 {[%emt 0:00:00]} 22. b4 {[%emt 0:00:00]} cxb4 {[%emt 0:00:00]} 23. axb4 {[%emt 0:00:00]} f4 {[%emt 0:00:00]} 24. Rc6 {[%emt 0:00:00]} Qd5 {[%emt 0:00:00]} 25. Qb3 {[%emt 0:00:00]} f3 {[%emt 0:00:00]} 26. exf3 {[%emt 0:00:00]} Rxf3 {[%emt 0:00:00]} 27. Rxb6 {[%emt 0:00:00]} axb4 {[%emt 0:00:00]} 28. Rb8+ {[%emt 0:00:00]} Kf7 {[%emt 0:00:00]} 29. Qxb4 {[%emt 0:00:00]} Rxd3 {[%emt 0:08:28]} 30. Rf8+ {[%emt 0:00:00]} Kg6 {[%emt 0:00:41]} 31. Qg4+ {[%emt 0:00:00]} Kh6 {[%emt 0:05:21]} 32. Qh4+ {[%emt 0:02:01]} Kg6 {[%emt 0:00:00]} 33. Qg4+ {[%emt 0:04:02]} Kh6 {[%emt 0:00:00]} 34. Qh3+ {[%emt 0:00:26]} Kg6 {[%emt 0:00:00]} 35. Qf5+ {[%emt 0:00:54]} Kh6 {[%emt 0:00:00]} 36. h4 {[%emt 0:01:33]} g6 {[%emt 0:00:00]} 37. Qg5+ {[%emt 0:00:53]} Kg7 {[%emt 0:00:00]} 38. Qf6+ {[%emt 0:00:16]} Kh6 {[%emt 0:00:00]} 39. Kh2 {[%emt 0:01:57]} e4 {[%emt 0:00:00]} 40. Qf4+ {[%emt 0:02:10]} Kg7 {[%emt 0:00:38]} 1/2-1/2

[Event "36th German Seniors-ch-65 2024"]
[Site "Bad Wildungen"]
[Date "2024.08.26"]
[Round "4.11"]
[White "Gries, Volker"]
[Black "Podat, Vladimir"]
[Result "0-1"]
[ECO "B31"]
[WhiteElo "2012"]
[BlackElo "2157"]
[Annotator "RC"]
[PlyCount "82"]
[EventDate "2024.08.22"]
[EventType "swiss"]
[EventCountry "GER"]
[SourceTitle "playchess.com"]
[Source "ChessBase"]
[SourceQuality "1"]
[TimeControl "40/5400+30:1800+30"]

1. e4 {[%emt 0:00:06]} c5 {[%emt 0:00:10]} 2. Nf3 {[%emt 0:00:11]} Nc6 {[%emt 0:00:07]} 3. Bb5 {[%emt 0:00:35]} g6 {[%emt 0:00:10]} 4. Bxc6 {[%emt 0:01:08]} dxc6 {[%emt 0:00:07]} 5. O-O {[%emt 0:00:41]} Bg7 {[%emt 0:00:09]} 6. Qe2 {[%emt 0:05:04]} Nf6 {[%emt 0:00:47]} 7. Rd1 {[%emt 0:01:49]} Qc7 {[%emt 0:04:45]} 8. h3 {[%emt 0:15:44]} Nd7 {[%emt 0:07:58]} 9. c3 {[%emt 0:07:37]} e5 {[%emt 0:07:53]} 10. d4 {[%emt 0:00:15]} cxd4 {[%emt 0:00:09]} 11. cxd4 {[%emt 0:00:02]} exd4 {[%emt 0:00:09]} 12. Nxd4 {[%emt 0:00:08]} O-O {[%emt 0:00:10]} 13. Nc3 {[%emt 0:00:35]} Re8 {[%emt 0:02:43]} 14. Qc2 {[%emt 0:02:43]} Nc5 {[%emt 0:24:53]} 15. Nde2 {[%emt 0:23:50]} Ne6 {[%emt 0:12:05]} 16. Be3 {[%emt 0:02:01]} b6 {[%emt 0:11:55]} 17. Rac1 {[%emt 0:00:59]} Qe7 {[%emt 0:01:56]} 18. Nd4 {[%emt 0:07:01]} Bb7 {[%emt 0:00:14]} 19. Nf3 {[%emt 0:02:25]} Rad8 {[%emt 0:01:08]} 20. Qa4 {[%emt 0:02:31]} Ba8 {[%emt 0:00:13]} 21. Rxd8 {[%emt 0:04:35]} Rxd8 {[%emt 0:00:09]} 22. Rd1 {[%emt 0:00:07]} Rxd1+ {[%emt 0:00:32]} 23. Nxd1 {[%emt 0:00:30]} c5 {[%emt 0:07:45]} 24. Nc3 {[%emt 0:02:56]} Bxc3 {[%emt 0:00:12]} 25. bxc3 {[%emt 0:00:01]} Kg7 {[%emt 0:00:09]} 26. Nd2 {[%emt 0:01:40]} Qc7 {[%emt 0:00:32]} 27. g3 {[%emt 0:07:54]} Bc6 {[%emt 0:00:08]} 28. Qc2 {[%emt 0:00:57]} Qd7 {[%emt 0:04:53]} 29. Kh2 {[%emt 0:00:20]} Ba4 {[%emt 0:02:30]} 30. Qb1 {[%emt 0:00:40]} h6 {[%emt 0:01:32]} 31. f4 {[%emt 0:06:58]} f6 {[%emt 0:01:57]} 32. h4 {[%emt 0:00:37]} Nc7 {[%emt 0:01:46]} 33. h5 {[%emt 0:02:09]} Qg4 {[%emt 0:00:29]} 34. Nf1 {[%emt 0:00:59]} Qxh5+ {[%emt 0:07:15]} 35. Kg1 {[%emt 0:02:12]} Qe2 {[%emt 0:00:00]} 36. Bxc5 {[%emt 0:00:00]} Bc6 {[%emt 0:00:00]} 37. Bf2 {[%emt 0:00:00]} Bxe4 {[%emt 0:00:00]} 38. Qb4 {[%emt 0:00:00]} Nd5 {[%emt 0:00:00]} 39. Qd6 {[%emt 0:00:00]} Qf3 {[%emt 0:00:00]} 40. Qd7+ {[%emt 0:00:01]} Kf8 {[%emt 0:00:00]} 41. Qd8+ {[%emt 0:32:59]} Kf7 {[%emt 0:33:30]} 0-1

[Event "36th German Seniors-ch-65 2024"]
[Site "Bad Wildungen"]
[Date "2024.08.26"]
[Round "4.12"]
[White "Gruzmann, Boris"]
[Black "Kornrumpf, Joachim"]
[Result "0-1"]
[ECO "B42"]
[WhiteElo "2167"]
[BlackElo "2029"]
[Annotator "RC"]
[PlyCount "74"]
[EventDate "2024.08.22"]
[EventType "swiss"]
[EventCountry "GER"]
[SourceTitle "playchess.com"]
[Source "ChessBase"]
[SourceQuality "1"]
[TimeControl "40/5400+30:1800+30"]

1. e4 {[%emt 0:00:06]} c5 {[%emt 0:00:14]} 2. Nf3 {[%emt 0:00:11]} e6 {[%emt 0:00:22]} 3. d4 {[%emt 0:00:10]} cxd4 {[%emt 0:00:06]} 4. Nxd4 {[%emt 0:00:10]} a6 {[%emt 0:00:58]} 5. Bd3 {[%emt 0:00:14]} Nf6 {[%emt 0:00:58]} 6. O-O {[%emt 0:00:21]} Qc7 {[%emt 0:00:15]} 7. c4 {[%emt 0:00:35]} Nc6 {[%emt 0:05:45]} 8. Nxc6 {[%emt 0:01:46]} dxc6 {[%emt 0:00:10]} 9. Nc3 {[%emt 0:01:15]} e5 {[%emt 0:00:47]} 10. Bg5 {[%emt 0:00:57]} Be7 {[%emt 0:00:50]} 11. Rc1 {[%emt 0:01:44]} O-O {[%emt 0:04:19]} 12. Qe2 {[%emt 0:03:17]} Bg4 {[%emt 0:04:55]} 13. f3 {[%emt 0:02:42]} Be6 {[%emt 0:00:41]} 14. Kh1 {[%emt 0:03:14]} Rad8 {[%emt 0:04:23]} 15. Rfd1 {[%emt 0:07:30]} h6 {[%emt 0:05:37]} 16. Bh4 {[%emt 0:03:57]} Nh5 {[%emt 0:08:43]} 17. Bxe7 {[%emt 0:00:37]} Qxe7 {[%emt 0:00:03]} 18. g3 {[%emt 0:00:30]} Nf6 {[%emt 0:01:30]} 19. c5 {[%emt 0:02:43]} Rd4 {[%emt 0:08:31]} 20. b3 {[%emt 0:01:35]} Rfd8 {[%emt 0:04:03]} 21. Na4 {[%emt 0:01:07]} Ne8 {[%emt 0:06:31]} 22. f4 {[%emt 0:07:45]} exf4 {[%emt 0:11:48]} 23. gxf4 {[%emt 0:00:13]} Bg4 {[%emt 0:01:56]} 24. Qxg4 {[%emt 0:00:11]} Rxd3 {[%emt 0:00:05]} 25. Re1 {[%emt 0:00:43]} Nf6 {[%emt 0:04:26]} 26. Qh4 {[%emt 0:02:31]} Qe6 {[%emt 0:01:54]} 27. Nc3 {[%emt 0:10:13]} Rh3 {[%emt 0:04:41]} 28. f5 {[%emt 0:02:35]} Qxf5 {[%emt 0:02:29]} 29. exf5 {[%emt 0:00:50]} Rxh4 {[%emt 0:00:02]} 30. Rc2 {[%emt 0:06:44]} Rf4 {[%emt 0:01:11]} 31. Re5 {[%emt 0:02:32]} Ng4 {[%emt 0:04:19]} 32. Re7 {[%emt 0:09:13]} Rxf5 {[%emt 0:01:02]} 33. b4 {[%emt 0:06:22]} Rd3 {[%emt 0:02:14]} 34. Rc1 {[%emt 0:11:01]} Ne3 {[%emt 0:03:18]} 35. h3 {[%emt 0:01:31]} Rf3 {[%emt 0:01:01]} 36. Rxb7 {[%emt 0:00:57]} Rxh3+ {[%emt 0:00:47]} 37. Kg1 {[%emt 0:00:08]} Rd2 {[%emt 0:00:32]} 0-1

[Event "36th German Seniors-ch-65 2024"]
[Site "Bad Wildungen"]
[Date "2024.08.26"]
[Round "4.13"]
[White "Zuehlke, Burkhard"]
[Black "Kannenberg, Karl-Heinz"]
[Result "1-0"]
[ECO "D13"]
[WhiteElo "1999"]
[BlackElo "2121"]
[Annotator "RC"]
[PlyCount "133"]
[EventDate "2024.08.22"]
[EventType "swiss"]
[EventCountry "GER"]
[SourceTitle "playchess.com"]
[Source "ChessBase"]
[SourceQuality "1"]
[TimeControl "40/5400+30:1800+30"]

1. d4 {[%emt 0:00:02]} d5 {[%emt 0:00:10]} 2. c4 {[%emt 0:00:07]} c6 {[%emt 0:00:05]} 3. Nf3 {[%emt 0:00:11]} Nf6 {[%emt 0:00:10]} 4. g3 {[%emt 0:00:16]} Bf5 {[%emt 0:01:47]} 5. cxd5 {[%emt 0:03:22]} cxd5 {[%emt 0:01:07]} 6. Nc3 {[%emt 0:00:49]} Nc6 {[%emt 0:01:54]} 7. Nh4 {[%emt 0:12:24]} Bd7 {[%emt 0:01:41]} 8. Bg2 {[%emt 0:01:01]} e6 {[%emt 0:00:11]} 9. O-O {[%emt 0:10:49]} Be7 {[%emt 0:00:58]} 10. Nf3 {[%emt 0:01:03]} O-O {[%emt 0:02:27]} 11. h3 {[%emt 0:04:02]} Na5 {[%emt 0:03:52]} 12. Ne5 {[%emt 0:00:44]} Rc8 {[%emt 0:02:44]} 13. g4 {[%emt 0:04:51]} Nc4 {[%emt 0:01:19]} 14. g5 {[%emt 0:02:38]} Ne8 {[%emt 0:00:35]} 15. e4 {[%emt 0:00:13]} Nxe5 {[%emt 0:03:21]} 16. dxe5 {[%emt 0:00:09]} Bxg5 {[%emt 0:20:59]} 17. f4 {[%emt 0:09:32]} d4 {[%emt 0:03:10]} 18. Qxd4 {[%emt 0:13:19]} Be7 {[%emt 0:00:57]} 19. Kh1 {[%emt 0:00:24]} Bc5 {[%emt 0:02:18]} 20. Qd3 {[%emt 0:00:13]} Bc6 {[%emt 0:00:21]} 21. Qg3 {[%emt 0:05:22]} f6 {[%emt 0:03:06]} 22. Qg4 {[%emt 0:06:24]} Nc7 {[%emt 0:06:11]} 23. f5 {[%emt 0:03:44]} exf5 {[%emt 0:19:05]} 24. exf5 {[%emt 0:01:03]} fxe5 {[%emt 0:01:22]} 25. Bxc6 {[%emt 0:02:26]} bxc6 {[%emt 0:01:24]} 26. Qc4+ {[%emt 0:00:07]} Kh8 {[%emt 0:01:38]} 27. Qxc5 {[%emt 0:00:08]} Qd3 {[%emt 0:00:15]} 28. Kg2 {[%emt 0:03:51]} Ne6 {[%emt 0:01:43]} 29. Qxe5 {[%emt 0:01:19]} Nd4 {[%emt 0:03:16]} 30. Bh6 {[%emt 0:02:11]} Rf6 {[%emt 0:02:10]} 31. Rad1 {[%emt 0:03:22]} Qa6 {[%emt 0:04:41]} 32. Qxd4 {[%emt 0:01:11]} c5 {[%emt 0:00:11]} 33. Qh4 {[%emt 0:01:49]} gxh6 {[%emt 0:00:24]} 34. Qe4 {[%emt 0:03:07]} Qb6 {[%emt 0:04:37]} 35. Rf2 {[%emt 0:01:58]} Qb8 {[%emt 0:01:18]} 36. Rd3 {[%emt 0:02:03]} Rg8+ {[%emt 0:00:57]} 37. Kh1 {[%emt 0:00:30]} Re8 {[%emt 0:02:46]} 38. Qf3 {[%emt 0:00:55]} Ref8 {[%emt 0:01:04]} 39. Qe4 {[%emt 0:00:54]} Re8 {[%emt 0:00:14]} 40. Qf4 {[%emt 0:00:27]} Re1+ {[%emt 0:00:28]} 41. Kh2 {[%emt 0:30:36]} Qa8 {[%emt 0:04:01]} 42. Rg2 {[%emt 0:00:00]} Rf7 {[%emt 0:00:48]} 43. Rdg3 {[%emt 0:00:00]} Re8 {[%emt 0:02:22]} 44. Qxh6 {[%emt 0:00:00]} Qb8 {[%emt 0:00:21]} 45. Kh1 {[%emt 0:00:00]} Re1+ {[%emt 0:01:20]} 46. Kh2 {[%emt 0:00:00]} Re8 {[%emt 0:00:52]} 47. Kg1 {[%emt 0:00:00]} Qe5 {[%emt 0:02:13]} 48. Rf3 {[%emt 0:00:00]} Qd4+ {[%emt 0:04:23]} 49. Kh2 {[%emt 0:00:00]} Ref8 {[%emt 0:02:43]} 50. Qe6 {[%emt 0:00:00]} Rf6 {[%emt 0:04:56]} 51. Qd5 {[%emt 0:00:00]} Qxd5 {[%emt 0:01:29]} 52. Nxd5 {[%emt 0:00:00]} Rxf5 {[%emt 0:00:14]} 53. Rxf5 {[%emt 0:07:24]} Rxf5 {[%emt 0:00:10]} 54. Rg8+ {[%emt 0:00:00]} Kxg8 {[%emt 0:00:20]} 55. Ne7+ {[%emt 0:00:00]} Kf7 {[%emt 0:00:25]} 56. Nxf5 {[%emt 0:00:00]} Ke6 {[%emt 0:00:08]} 57. Ne3 {[%emt 0:00:00]} Ke5 {[%emt 0:00:28]} 58. Kg2 {[%emt 0:00:00]} Kd4 {[%emt 0:00:08]} 59. Kf2 {[%emt 0:00:00]} Kd3 {[%emt 0:00:17]} 60. Kf3 {[%emt 0:00:00]} c4 {[%emt 0:00:38]} 61. h4 {[%emt 0:00:00]} a5 {[%emt 0:00:36]} 62. h5 {[%emt 0:00:00]} a4 {[%emt 0:03:35]} 63. Nxc4 {[%emt 0:00:00]} Kxc4 {[%emt 0:00:15]} 64. Ke4 {[%emt 0:00:00]} h6 {[%emt 0:01:33]} 65. b3+ {[%emt 0:00:00]} axb3 {[%emt 0:00:02]} 66. axb3+ {[%emt 0:06:30]} Kxb3 {[%emt 0:00:12]} 67. Kf5 {[%emt 0:00:30]} 1-0

[Event "36th German Seniors-ch-65 2024"]
[Site "Bad Wildungen"]
[Date "2024.08.26"]
[Round "4.14"]
[White "Rosen, Willy"]
[Black "Hartlieb, Juergen"]
[Result "1-0"]
[ECO "B06"]
[WhiteElo "2091"]
[BlackElo "2013"]
[Annotator "RC"]
[PlyCount "83"]
[EventDate "2024.08.22"]
[EventType "swiss"]
[EventCountry "GER"]
[SourceTitle "playchess.com"]
[Source "ChessBase"]
[SourceQuality "1"]
[TimeControl "40/5400+30:1800+30"]

1. e4 {[%emt 0:00:04]} g6 {[%emt 0:00:15]} 2. d4 {[%emt 0:00:11]} Bg7 {[%emt 0:00:08]} 3. Nc3 {[%emt 0:00:10]} d6 {[%emt 0:00:25]} 4. h3 {[%emt 0:00:15]} Nd7 {[%emt 0:01:12]} 5. Nf3 {[%emt 0:00:19]} c5 {[%emt 0:02:27]} 6. Be3 {[%emt 0:01:39]} cxd4 {[%emt 0:00:42]} 7. Nxd4 {[%emt 0:00:15]} Ngf6 {[%emt 0:03:15]} 8. Qd2 {[%emt 0:04:15]} Nc5 {[%emt 0:05:15]} 9. f3 {[%emt 0:00:13]} Ne6 {[%emt 0:04:52]} 10. O-O-O {[%emt 0:04:35]} Nxd4 {[%emt 0:01:16]} 11. Bxd4 {[%emt 0:00:10]} O-O {[%emt 0:01:15]} 12. g4 {[%emt 0:00:48]} Be6 {[%emt 0:05:34]} 13. h4 {[%emt 0:04:55]} Qa5 {[%emt 0:05:32]} 14. a3 {[%emt 0:05:46]} Rfc8 {[%emt 0:12:07]} 15. h5 {[%emt 0:03:27]} b5 {[%emt 0:13:44]} 16. hxg6 {[%emt 0:09:59]} b4 {[%emt 0:12:11]} 17. gxh7+ {[%emt 0:03:13]} Kh8 {[%emt 0:00:13]} 18. Nd5 {[%emt 0:03:33]} Bxd5 {[%emt 0:01:43]} 19. exd5 {[%emt 0:00:16]} Qa4 {[%emt 0:03:30]} 20. Kb1 {[%emt 0:09:34]} Rab8 {[%emt 0:05:37]} 21. b3 {[%emt 0:03:48]} Qxa3 {[%emt 0:05:14]} 22. Bd3 {[%emt 0:05:10]} Rc5 {[%emt 0:04:51]} 23. Qc1 {[%emt 0:04:01]} Qxc1+ {[%emt 0:03:45]} 24. Kxc1 {[%emt 0:00:19]} Ra5 {[%emt 0:02:44]} 25. Bc4 {[%emt 0:01:40]} Nd7 {[%emt 0:00:32]} 26. Bxg7+ {[%emt 0:04:12]} Kxg7 {[%emt 0:00:03]} 27. f4 {[%emt 0:00:28]} Rh8 {[%emt 0:01:19]} 28. Rde1 {[%emt 0:01:41]} Ra1+ {[%emt 0:00:32]} 29. Kd2 {[%emt 0:00:11]} Rxe1 {[%emt 0:04:47]} 30. Rxe1 {[%emt 0:00:27]} Re8 {[%emt 0:00:00]} 31. Bb5 {[%emt 0:00:40]} Rd8 {[%emt 0:00:00]} 32. Rxe7 {[%emt 0:00:26]} Nf6 {[%emt 0:00:00]} 33. Rxa7 {[%emt 0:03:13]} Nxg4 {[%emt 0:00:00]} 34. Bd7 {[%emt 0:05:31]} Nf6 {[%emt 0:00:00]} 35. Be6 {[%emt 0:00:14]} Rf8 {[%emt 0:00:00]} 36. Bxf7 {[%emt 0:00:14]} Kxh7 {[%emt 0:01:02]} 37. Be6+ {[%emt 0:00:23]} Kg6 {[%emt 0:00:12]} 38. Kd3 {[%emt 0:23:15]} Nh5 {[%emt 0:01:07]} 39. f5+ {[%emt 0:00:00]} Kf6 {[%emt 0:00:17]} 40. Rb7 {[%emt 0:00:00]} Ng3 {[%emt 0:00:22]} 41. Rxb4 {[%emt 0:08:59]} Nxf5 {[%emt 0:30:20]} 42. Rf4 {[%emt 0:00:12]} 1-0

[Event "36th German Seniors-ch-65 2024"]
[Site "Bad Wildungen"]
[Date "2024.08.26"]
[Round "4.15"]
[White "Tuertmann, Dieter"]
[Black "Lutz, Albert"]
[Result "0-1"]
[ECO "A38"]
[WhiteElo "1938"]
[BlackElo "2070"]
[Annotator "RC"]
[PlyCount "96"]
[EventDate "2024.08.22"]
[EventType "swiss"]
[EventCountry "GER"]
[SourceTitle "playchess.com"]
[Source "ChessBase"]
[SourceQuality "1"]
[TimeControl "40/5400+30:1800+30"]

1. c4 {[%emt 0:00:05]} Nf6 {[%emt 0:00:46]} 2. Nc3 {[%emt 0:01:08]} g6 {[%emt 0:01:23]} 3. d3 {[%emt 0:00:13]} Bg7 {[%emt 0:00:26]} 4. g3 {[%emt 0:00:35]} d5 {[%emt 0:00:43]} 5. cxd5 {[%emt 0:00:16]} Nxd5 {[%emt 0:00:09]} 6. Nxd5 {[%emt 0:01:56]} Qxd5 {[%emt 0:00:12]} 7. Nf3 {[%emt 0:00:12]} O-O {[%emt 0:01:17]} 8. Bg2 {[%emt 0:00:05]} c5 {[%emt 0:07:02]} 9. O-O {[%emt 0:00:17]} Qh5 {[%emt 0:00:31]} 10. Qc2 {[%emt 0:05:18]} Nc6 {[%emt 0:00:41]} 11. a3 {[%emt 0:03:37]} Bg4 {[%emt 0:02:42]} 12. Re1 {[%emt 0:01:01]} Rac8 {[%emt 0:01:57]} 13. Rb1 {[%emt 0:08:02]} b6 {[%emt 0:05:47]} 14. Be3 {[%emt 0:07:05]} e5 {[%emt 0:05:28]} 15. Qa4 {[%emt 0:03:22]} Rc7 {[%emt 0:12:19]} 16. Nd2 {[%emt 0:07:40]} Nd4 {[%emt 0:06:24]} 17. f3 {[%emt 0:02:31]} Bd7 {[%emt 0:01:22]} 18. Qd1 {[%emt 0:00:26]} f5 {[%emt 0:04:03]} 19. Bf2 {[%emt 0:00:43]} Be6 {[%emt 0:06:26]} 20. e3 {[%emt 0:00:59]} Nc6 {[%emt 0:00:45]} 21. Qc2 {[%emt 0:02:03]} Rfc8 {[%emt 0:05:23]} 22. Red1 {[%emt 0:02:50]} g5 {[%emt 0:00:27]} 23. b3 {[%emt 0:03:35]} Qf7 {[%emt 0:01:17]} 24. Be1 {[%emt 0:02:54]} Bd5 {[%emt 0:03:34]} 25. Nc4 {[%emt 0:01:46]} Qd7 {[%emt 0:02:28]} 26. a4 {[%emt 0:00:36]} Rd8 {[%emt 0:02:20]} 27. Bc3 {[%emt 0:01:27]} Bf7 {[%emt 0:03:28]} 28. Qb2 {[%emt 0:01:10]} Qe6 {[%emt 0:01:05]} 29. f4 {[%emt 0:01:12]} gxf4 {[%emt 0:00:21]} 30. gxf4 {[%emt 0:01:00]} Bh5 {[%emt 0:02:55]} 31. Re1 {[%emt 0:05:35]} e4 {[%emt 0:02:39]} 32. dxe4 {[%emt 0:06:06]} fxe4 {[%emt 0:00:13]} 33. Ne5 {[%emt 0:03:58]} Nxe5 {[%emt 0:02:29]} 34. Bxe5 {[%emt 0:00:08]} Rcd7 {[%emt 0:03:02]} 35. Qc2 {[%emt 0:06:20]} Rd2 {[%emt 0:05:40]} 36. Qxe4 {[%emt 0:01:12]} Bg6 {[%emt 0:00:08]} 37. Qc4 {[%emt 0:01:03]} Qxc4 {[%emt 0:00:30]} 38. bxc4 {[%emt 0:00:08]} Bxe5 {[%emt 0:00:19]} 39. fxe5 {[%emt 0:02:54]} Bxb1 {[%emt 0:00:16]} 40. Bd5+ {[%emt 0:00:19]} R8xd5 {[%emt 0:01:02]} 41. cxd5 {[%emt 0:30:09]} Be4 {[%emt 0:30:31]} 42. d6 {[%emt 0:01:13]} Kf7 {[%emt 0:00:40]} 43. Rf1+ {[%emt 0:04:57]} Ke6 {[%emt 0:00:17]} 44. Rf6+ {[%emt 0:00:27]} Kxe5 {[%emt 0:11:03]} 45. Rf7 {[%emt 0:00:23]} Kxd6 {[%emt 0:00:00]} 46. Rxa7 {[%emt 0:00:13]} c4 {[%emt 0:00:00]} 47. a5 {[%emt 0:00:23]} bxa5 {[%emt 0:00:00]} 48. Rxa5 {[%emt 0:00:10]} c3 {[%emt 0:00:00]} 0-1